fUSD/lending_fUSD_20250213
["ID","MTS","AMOUNT","RATE_DAILY","PERIOD"]
[352952917,1739459442427,-873.72,0.00014032,2]
[352952919,1739459442436,-591.41,0.00014032,2]
[352952921,1739459442446,-1008.31,0.00014032,2]
[352952923,1739459442455,-500.0,0.00014032,2]
[352952925,1739459442465,-500.0,0.00014032,2]
[352952927,1739459442481,-500.0,0.00014032,2]
[352952929,1739459442491,-500.0,0.00014032,2]
[352952931,1739459442500,-500.0,0.00014032,2]
[352952933,1739459442510,-994.65,0.00014032,2]
[352952935,1739459442520,-500.0,0.00014032,2]
[352952937,1739459442529,-253.50968162,0.00014032,2]
[352952939,1739459442538,-818.69,0.00014032,2]
[352952941,1739459442547,-500.0,0.00014032,2]
[352952943,1739459442558,-500.0,0.00014032,2]
[352952945,1739459442567,-1158.53,0.00014032,2]
[352952947,1739459442577,-500.0,0.00014032,2]
[352952948,1739459442586,-186.04478148,0.00014032,2]
[352952950,1739459442595,-500.0,0.00014032,2]
[352952952,1739459442605,-500.0,0.00014032,2]
[352952954,1739459442615,-500.0,0.00014032,2]
[352952956,1739459442627,-500.0,0.00014032,2]
[352952958,1739459442637,-992.65,0.00014032,2]
[352952960,1739459442646,-500.0,0.00014032,2]
[352952962,1739459442656,-500.0,0.00014032,2]
[352952964,1739459442665,-573.80723182,0.00014032,2]
[352952966,1739459442675,-500.0,0.00014032,2]
[352952968,1739459442684,-500.0,0.00014032,2]
[352952970,1739459442693,-862.75677376,0.00014033,2]
[352952972,1739459442703,-4629.53578602,0.00014033,2]
[352952974,1739459442713,-150.99,0.00014033,2]
[352952976,1739459442723,-228.46992603,0.00014033,2]
[352952978,1739459442732,-500.0,0.00014033,2]
[352952980,1739459442742,-500.0,0.00014033,2]
[352952982,1739459442751,-500.0,0.00014033,2]
[352952984,1739459442761,-1388.28,0.00014033,2]
[352952986,1739459442770,-1582.89,0.00014033,2]
[352952988,1739459442780,-1249.16,0.00014033,2]
[352952990,1739459442789,-500.0,0.00014033,2]
[352952992,1739459442798,-698.32,0.00014033,2]
[352952994,1739459442808,-1657.89,0.00014033,2]
[352952996,1739459442818,-500.0,0.00014033,2]
[352952998,1739459442827,-1221.69,0.00014033,2]
[352953000,1739459442842,-1861.82,0.00014033,2]
[352953002,1739459442852,-2288.62,0.00014033,2]
[352953004,1739459442862,-2465.5,0.00014033,2]
[352953006,1739459442874,-500.0,0.00014033,2]
[352953009,1739459442884,-520.22,0.00014033,2]
[352953011,1739459442894,-758.32,0.00014033,2]
[352953013,1739459442903,-1386.65,0.00014033,2]
[352953015,1739459442914,-1558.6,0.00014033,2]
[352953017,1739459442924,-712.26,0.00014033,2]
[352953019,1739459442934,-1494.4,0.00014033,2]
[352953021,1739459442943,-1030.3,0.00014033,2]
[352953023,1739459442953,-1729.26,0.00014033,2]
[352953024,1739459442963,-500.0,0.00014033,2]
[352953026,1739459442973,-204.00321252,0.00014033,2]
[352953027,1739459442983,-817.2,0.00014033,2]
[352953028,1739459442994,-2820.27,0.00014033,2]
[352953029,1739459443003,-3395.79,0.00014033,2]
[352953030,1739459443013,-500.0,0.00014033,2]
[352953031,1739459443023,-855.93,0.00014033,2]
[352953032,1739459443033,-1565.58,0.00014033,2]
[352953033,1739459443043,-1360.11,0.00014033,2]
[352953034,1739459443053,-500.0,0.00014033,2]
[352953035,1739459443063,-503.00902072,0.00014033,2]
[352953036,1739459443073,-500.0,0.00014033,2]
[352953037,1739459443084,-500.0,0.00014033,2]
[352953038,1739459443094,-500.0,0.00014033,2]
[352953040,1739459443104,-1362.87,0.00014033,2]
[352953042,1739459443113,-1441.17,0.00014033,2]
[352953044,1739459443126,-2392.73,0.00014033,2]
[352953046,1739459443136,-1636.13,0.00014033,2]
[352953048,1739459443146,-1302.9,0.00014033,2]
[352953050,1739459443156,-500.0,0.00014033,2]
[352953052,1739459443166,-1786.01,0.00014033,2]
[352953054,1739459443176,-2338.88,0.00014033,2]
[352953056,1739459443186,-500.0,0.00014033,2]
[352953058,1739459443195,-1596.87,0.00014033,2]
[352953060,1739459443206,-500.0,0.00014033,2]
[352953062,1739459443215,-2458.31,0.00014033,2]
[352953064,1739459443225,-1048.11,0.00014033,2]
[352953066,1739459443235,-2522.17,0.00014033,2]
[352953068,1739459443244,-717.3,0.00014048,2]
[352953070,1739459443258,-862.75677376,0.00014055,2]
[352953072,1739459443268,-4629.53578602,0.00014055,2]
[352953074,1739459443278,-499.27927,0.0001406,2]
[352953076,1739459443288,-150.95983378,0.00014064,2]
[352953078,1739459443297,-150.95983378,0.00014071,2]
[352953082,1739459443307,-862.75677376,0.00014078,2]
[352953086,1739459443317,-4629.53578602,0.00014078,2]
[352953090,1739459443327,-150.95983378,0.00014078,2]
[352953095,1739459443337,-1468.91,0.0001408,2]
[352953098,1739459443347,-255.91566008,0.0001408,2]
[352953101,1739459443357,-558.59,0.0001408,2]
[352953103,1739459443368,-554.84,0.0001408,2]
[352953105,1739459443378,-500.0,0.0001408,2]
[352953107,1739459443387,-1061.52,0.0001408,2]
[352953109,1739459443397,-563.01458737,0.0001408,2]
[352953112,1739459443407,-626.87,0.0001408,2]
[352953114,1739459443416,-500.0,0.0001408,2]
[352953116,1739459443426,-719.49,0.0001408,2]
[352953118,1739459443436,-629.57,0.0001408,2]
[352953120,1739459443446,-643.31,0.0001408,2]
[352953122,1739459443456,-500.0,0.0001408,2]
[352953125,1739459443466,-500.0,0.0001408,2]
[352953127,1739459443476,-1610.94,0.0001408,2]
[352953129,1739459443485,-544.69020935,0.0001408,2]
[352953131,1739459443495,-929.84,0.0001408,2]
[352953133,1739459443504,-500.0,0.0001408,2]
[352953135,1739459443514,-579.69865365,0.0001408,2]
[352953137,1739459443523,-500.0,0.0001408,2]
[352953139,1739459443534,-579.86,0.0001408,2]
[352953140,1739459443544,-500.0,0.0001408,2]
[352953142,1739459443554,-500.0,0.0001408,2]
[352953144,1739459443563,-699.75,0.0001408,2]
[352953146,1739459443573,-1248.83,0.0001408,2]
[352953148,1739459443582,-500.0,0.0001408,2]
[352953150,1739459443591,-1000.9,0.0001408,2]
[352953152,1739459443601,-367.09384496,0.0001408,2]
[352953154,1739459443611,-500.0,0.0001408,2]
[352953156,1739459443622,-500.0,0.0001408,2]
[352953158,1739459443631,-2169.12,0.0001408,2]
[352953160,1739459443640,-500.0,0.0001408,2]
[352953162,1739459443650,-1038.12,0.0001408,2]
[352953164,1739459443659,-500.0,0.0001408,2]
[352953166,1739459443669,-1649.29,0.0001408,2]
[352953168,1739459443678,-518.99711628,0.0001408,2]
[352953170,1739459443688,-2028.12,0.0001408,2]
[352953172,1739459443697,-2084.73,0.0001408,2]
[352953174,1739459443707,-1027.96,0.0001408,2]
[352953176,1739459443718,-620.3,0.0001408,2]
[352953178,1739459443728,-1242.68,0.0001408,2]
[352953180,1739459443737,-500.0,0.0001408,2]
[352953182,1739459443747,-1093.47,0.0001408,2]
[352953184,1739459443757,-987.59,0.0001408,2]
[352953186,1739459443767,-500.0,0.0001408,2]
[352953188,1739459443776,-500.0,0.0001408,2]
[352953190,1739459443785,-917.98,0.0001408,2]
[352953192,1739459443795,-913.35,0.0001408,2]
[352953194,1739459443804,-500.0,0.0001408,2]
[352953196,1739459443814,-500.0,0.0001408,2]
[352953198,1739459443823,-513.09,0.0001408,2]
[352953200,1739459443834,-1193.21,0.0001408,2]
[352953202,1739459443843,-500.0,0.0001408,2]
[352953204,1739459443852,-500.0,0.0001408,2]
[352953206,1739459443861,-2174.403919,0.0001408,2]
[352953208,1739459443874,-503.59365442,0.0001408,2]
[352953210,1739459443884,-500.0,0.0001408,2]
[352953212,1739459443893,-500.0,0.0001408,2]
[352953214,1739459443902,-500.0,0.0001408,2]
[352953216,1739459443912,-500.0,0.0001408,2]
[352953218,1739459443922,-500.0,0.0001408,2]
[352953220,1739459443931,-555.73,0.0001408,2]
[352953222,1739459443941,-757.94,0.0001408,2]
[352953224,1739459443951,-500.0,0.0001408,2]
[352953226,1739459443963,-1563.35,0.0001408,2]
[352953228,1739459443974,-789.52,0.0001408,2]
[352953230,1739459443983,-500.0,0.0001408,2]
[352953232,1739459443993,-500.0,0.0001408,2]
[352953234,1739459444003,-1038.77,0.0001408,2]
[352953236,1739459444012,-939.22,0.0001408,2]
[352953238,1739459444022,-973.483205,0.0001408,2]
[352953240,1739459444031,-500.0,0.0001408,2]
[352953242,1739459444041,-853.51,0.0001408,2]
[352953245,1739459444051,-500.0,0.0001408,2]
[352953248,1739459444060,-504.33240458,0.0001408,2]
[352953251,1739459444070,-500.0,0.0001408,2]
[352953254,1739459444079,-1463.44117739,0.0001408,2]
[352953308,1739459444705,-355.76882261,0.0001408,2]
[352953311,1739459444723,-224.25472637,0.0001408,2]
[352953314,1739459444747,-747.52527363,0.0001408,2]
[352953318,1739459444766,-500.0,0.0001408,2]
[352953320,1739459444789,-500.0,0.0001408,2]
[352953323,1739459444807,-2137.93,0.0001408,2]
[352953326,1739459444827,-500.0,0.0001408,2]
[352953329,1739459444844,-323.09745507,0.0001408,2]
[352953331,1739459444857,-587.75,0.0001408,2]
[352953334,1739459444877,-91.0272713,0.0001408,2]
[352953338,1739459444900,-408.9727287,0.0001408,2]
[352953340,1739459444916,-500.0,0.0001408,2]
[352953343,1739459444931,-112.1222713,0.0001408,2]
[352953346,1739459444950,-387.8777287,0.0001408,2]
[352953348,1739459444965,-95.34022987,0.0001408,2]
[352953351,1739459444984,-597.43977013,0.0001408,2]
[352953354,1739459445001,-101.81620246,0.0001408,2]
[352953357,1739459445019,-398.18379754,0.0001408,2]
[352953360,1739459445034,-544.66,0.0001408,2]
[352953362,1739459445050,-625.5354435,0.0001408,2]
[352953365,1739459445065,-500.0,0.0001408,2]
[352953367,1739459445080,-500.0,0.0001408,2]
[352953370,1739459445095,-500.0,0.0001408,2]
[352953373,1739459445111,-647.25,0.0001408,2]
[352953375,1739459445126,-500.0,0.0001408,2]
[352953378,1739459445141,-625.98,0.0001408,2]
[352953380,1739459445156,-500.0,0.0001408,2]
[352953383,1739459445170,-842.06,0.0001408,2]
[352953385,1739459445186,-234.11780231,0.0001408,2]
[352953388,1739459445201,-500.0,0.0001408,2]
[352953390,1739459445216,-378.35989729,0.0001408,2]
[352953393,1739459445231,-500.0,0.0001408,2]
[352953396,1739459445248,-537.17,0.0001408,2]
[352953398,1739459445264,-1094.73,0.0001408,2]
[352953401,1739459445279,-500.0,0.0001408,2]
[352953403,1739459445293,-500.0,0.0001408,2]
[352953406,1739459445308,-591.46,0.0001408,2]
[352953408,1739459445325,-1036.83,0.0001408,2]
[352953411,1739459445340,-900.41,0.0001408,2]
[352953413,1739459445355,-500.0,0.0001408,2]
[352953416,1739459445372,-500.0,0.0001408,2]
[352953419,1739459445387,-500.0,0.0001408,2]
[352953421,1739459445403,-500.0,0.0001408,2]
[352953424,1739459445418,-500.0,0.0001408,2]
[352953426,1739459445434,-500.0,0.0001408,2]
[352953429,1739459445448,-500.0,0.0001408,2]
[352953432,1739459445464,-500.0,0.0001408,2]
[352953434,1739459445480,-1095.97,0.0001408,2]
[352953437,1739459445495,-500.0,0.0001408,2]
[352953440,1739459445511,-500.0,0.0001408,2]
[352953442,1739459445526,-819.66,0.0001408,2]
[352953445,1739459445541,-500.0,0.0001408,2]
[352953447,1739459445556,-500.0,0.0001408,2]
[352953450,1739459445571,-1342.24,0.0001408,2]
[352953452,1739459445586,-500.0,0.0001408,2]
[352953455,1739459445607,-500.0,0.0001408,2]
[352953458,1739459445622,-500.0,0.0001408,2]
[352953460,1739459445638,-500.0,0.0001408,2]
[352953463,1739459445653,-1065.94,0.0001408,2]
[352953466,1739459445669,-1051.28,0.0001408,2]
[352953468,1739459445685,-500.0,0.0001408,2]
[352953471,1739459445701,-500.0,0.0001408,2]
[352953473,1739459445715,-772.17,0.0001408,2]
[352953476,1739459445728,-2070.25,0.0001408,2]
[352953478,1739459445739,-501.29706162,0.0001408,2]
[352953480,1739459445748,-500.0,0.0001408,2]
[352953482,1739459445758,-899.65,0.0001408,2]
[352953484,1739459445768,-864.27,0.0001408,2]
[352953486,1739459445778,-500.0,0.0001408,2]
[352953488,1739459445788,-2042.06,0.0001408,2]
[352953490,1739459445797,-773.84,0.0001408,2]
[352953492,1739459445807,-726.39,0.0001408,2]
[352953493,1739459445818,-2044.92,0.0001408,2]
[352953495,1739459445828,-1364.9,0.0001408,2]
[352953497,1739459445837,-3959.73,0.0001408,2]
[352953499,1739459445848,-500.0,0.0001408,2]
[352953501,1739459445858,-2302.61,0.0001408,2]
[352953502,1739459445868,-500.0,0.0001408,2]
[352953503,1739459445879,-2096.29,0.0001408,2]
[352953504,1739459445890,-500.0,0.0001408,2]
[352953505,1739459445899,-1305.48,0.0001408,2]
[352953506,1739459445912,-588.45,0.0001408,2]
[352953507,1739459445923,-3471.73,0.0001408,2]
[352953542,1739459446285,-500.0,0.0001408,2]
[352953549,1739459446316,-500.0,0.0001408,2]
[352953554,1739459446340,-2462.78,0.0001408,2]
[352953557,1739459446350,-1643.25,0.0001408,2]
[352953560,1739459446360,-500.0,0.0001408,2]
[352953562,1739459446369,-500.0,0.0001408,2]
[352953564,1739459446378,-704.84,0.0001408,2]
[352953566,1739459446388,-1126.44,0.0001408,2]
[352953568,1739459446398,-2007.06,0.0001408,2]
[352953570,1739459446408,-856.28,0.0001408,2]
[352953572,1739459446418,-564.15,0.0001408,2]
[352953574,1739459446427,-2374.12,0.0001408,2]
[352953575,1739459446437,-305.71605264,0.0001408,2]
[352953577,1739459446448,-819.15,0.0001408,2]
[352953579,1739459446458,-589.69,0.0001408,2]
[352953581,1739459446468,-697.69,0.0001408,2]
[352953583,1739459446478,-1159.41,0.0001408,2]
[352953586,1739459446488,-1271.45,0.0001408,2]
[352953587,1739459446500,-500.0,0.0001408,2]
[352953589,1739459446514,-500.0,0.0001408,2]
[352953591,1739459446524,-1842.32,0.0001408,2]
[352953593,1739459446535,-500.0,0.0001408,2]
[352953595,1739459446544,-1157.71,0.0001408,2]
[352953597,1739459446554,-2338.79,0.0001408,2]
[352953599,1739459446564,-500.0,0.0001408,2]
[352953601,1739459446573,-500.0,0.0001408,2]
[352953603,1739459446583,-1307.31,0.0001408,2]
[352953605,1739459446593,-3301.11,0.0001408,2]
[352953607,1739459446603,-500.0,0.0001408,2]
[352953608,1739459446612,-2936.59,0.0001408,2]
[352953610,1739459446624,-2961.11,0.0001408,2]
[352953611,1739459446634,-2225.56,0.0001408,2]
[352953613,1739459446644,-500.0,0.0001408,2]
[352953614,1739459446654,-2705.04,0.0001408,2]
[352953615,1739459446664,-4203.53,0.0001408,2]
[352953617,1739459446674,-1231.39,0.0001408,2]
[352953618,1739459446684,-600.91,0.0001408,2]
[352953620,1739459446695,-500.0,0.0001408,2]
[352953621,1739459446705,-500.0,0.0001408,2]
[352953623,1739459446716,-1195.82,0.0001408,2]
[352953624,1739459446725,-2340.38,0.0001408,2]
[352953626,1739459446735,-2094.48,0.0001408,2]
[352953627,1739459446745,-1715.29,0.0001408,2]
[352953629,1739459446755,-501.88333216,0.0001408,2]
[352953630,1739459446765,-3259.36,0.0001408,2]
[352953632,1739459446775,-4576.05,0.0001408,2]
[352953633,1739459446786,-500.0,0.0001408,2]
[352953635,1739459446795,-3099.23,0.0001408,2]
[352953636,1739459446805,-500.0,0.0001408,2]
[352953638,1739459446815,-3709.05,0.0001408,2]
[352953639,1739459446831,-3837.12,0.0001408,2]
[352953641,1739459446843,-1081.56,0.0001408,2]
[352953642,1739459446853,-500.0,0.0001408,2]
[352953644,1739459446863,-977.28,0.0001408,2]
[352953645,1739459446875,-500.0,0.0001408,2]
[352953647,1739459446885,-3396.61,0.0001408,2]
[352953648,1739459446895,-500.0,0.0001408,2]
[352953650,1739459446905,-500.0,0.0001408,2]
[352953652,1739459446916,-500.0,0.0001408,2]
[352953653,1739459446925,-3819.52,0.0001408,2]
[352953655,1739459446935,-500.0,0.0001408,2]
[352953656,1739459446945,-500.0,0.0001408,2]
[352953658,1739459446955,-500.0,0.0001408,2]
[352953659,1739459446964,-3051.4,0.0001408,2]
[352953661,1739459446975,-898.48,0.0001408,2]
[352953662,1739459446985,-500.0,0.0001408,2]
[352953664,1739459446994,-3683.07,0.0001408,2]
[352953665,1739459447003,-3784.52,0.0001408,2]
[352953667,1739459447013,-629.31,0.0001408,2]
[352953668,1739459447023,-500.0,0.0001408,2]
[352953670,1739459447033,-500.0,0.0001408,2]
[352953671,1739459447042,-2327.63,0.0001408,2]
[352953673,1739459447052,-3514.93,0.0001408,2]
[352953674,1739459447062,-2216.03,0.0001408,2]
[352953676,1739459447072,-3876.63,0.0001408,2]
[352953677,1739459447081,-502.26741004,0.0001408,2]
[352953679,1739459447091,-500.0,0.0001408,2]
[352953680,1739459447101,-2193.1,0.0001408,2]
[352953682,1739459447110,-500.0,0.0001408,2]
[352953683,1739459447120,-567.86,0.0001408,2]
[352953685,1739459447132,-3529.72,0.0001408,2]
[352953687,1739459447141,-10854.85,0.0001408,2]
[352953688,1739459447153,-973.9,0.0001408,2]
[352953690,1739459447163,-4786.34,0.0001408,2]
[352953691,1739459447173,-500.0,0.0001408,2]
[352953693,1739459447184,-5555.8,0.0001408,2]
[352953694,1739459447194,-1200.0,0.0001408,2]
[352953696,1739459447204,-3151.4,0.0001408,2]
[352953697,1739459447213,-500.0,0.0001408,2]
[352953699,1739459447223,-5504.82,0.0001408,2]
[352953700,1739459447233,-1764.34,0.0001408,2]
[352953702,1739459447242,-1194.82,0.0001408,2]
[352953703,1739459447254,-2993.88,0.0001408,2]
[352953705,1739459447264,-5581.9,0.0001408,2]
[352953707,1739459447274,-3953.71,0.0001408,2]
[352953708,1739459447283,-500.0,0.0001408,2]
[352953710,1739459447293,-4507.87,0.0001408,2]
[352953711,1739459447303,-2378.52,0.0001408,2]
[352953713,1739459447312,-639.55,0.0001408,2]
[352953714,1739459447322,-672.82,0.0001408,2]
[352953716,1739459447332,-2132.94,0.0001408,2]
[352953717,1739459447342,-500.0,0.0001408,2]
[352953719,1739459447351,-814.64,0.0001408,2]
[352953720,1739459447361,-500.0,0.0001408,2]
[352953722,1739459447374,-500.0,0.0001408,2]
[352953723,1739459447383,-4600.61,0.0001408,2]
[352953725,1739459447392,-1547.88,0.0001408,2]
[352953727,1739459447402,-4413.04,0.0001408,2]
[352953728,1739459447412,-500.0,0.0001408,2]
[352953730,1739459447421,-2281.14,0.0001408,2]
[352953731,1739459447430,-1294.28,0.0001408,2]
[352953733,1739459447440,-1515.52,0.0001408,2]
[352953734,1739459447450,-1948.69,0.0001408,2]
[352953736,1739459447459,-1236.05,0.0001408,2]
[352953737,1739459447468,-2310.5,0.0001408,2]
[352953739,1739459447478,-3632.22,0.0001408,2]
[352953740,1739459447487,-4159.65,0.0001408,2]
[352953742,1739459447497,-367.56634373,0.0001408,2]
[352953743,1739459447506,-5285.51,0.0001408,2]
[352953745,1739459447515,-500.0,0.0001408,2]
[352953747,1739459447524,-2775.94,0.0001408,2]
[352953748,1739459447534,-2651.53,0.0001408,2]
[352953750,1739459447543,-1906.31,0.0001408,2]
[352953751,1739459447552,-2667.03,0.0001408,2]
[352953753,1739459447561,-500.0,0.00014081,2]
[352953754,1739459447571,-1654.72,0.00014081,2]
[352953756,1739459447580,-2031.88,0.00014081,2]
[352953757,1739459447589,-916.96,0.00014081,2]
[352953759,1739459447599,-500.0,0.00014081,2]
[352953760,1739459447608,-500.0,0.00014081,2]
[352953762,1739459447617,-860.88,0.00014081,2]
[352953764,1739459447628,-500.0,0.00014081,2]
[352953766,1739459447637,-3096.18,0.00014081,2]
[352953768,1739459447647,-2835.03,0.00014081,2]
[352953770,1739459447657,-809.29,0.00014081,2]
[352953771,1739459447667,-1360.76,0.00014081,2]
[352953772,1739459447676,-2544.24,0.00014081,2]
[352953773,1739459447684,-2100.5,0.00014081,2]
[352953774,1739459447694,-1934.06,0.00014081,2]
[352953775,1739459447703,-2827.63,0.00014081,2]
[352953776,1739459447712,-1829.3,0.00014081,2]
[352953777,1739459447722,-551.46125929,0.00014081,2]
[352953778,1739459447731,-1436.89,0.00014081,2]
[352953779,1739459447740,-2540.9,0.00014081,2]
[352953780,1739459447750,-500.0,0.00014081,2]
[352953781,1739459447759,-500.0,0.00014081,2]
[352953782,1739459447768,-1714.39,0.00014081,2]
[352953783,1739459447777,-2012.57,0.00014081,2]
[352953784,1739459447787,-1590.16,0.00014081,2]
[352953785,1739459447798,-500.0,0.00014081,2]
[352953786,1739459447807,-1634.81,0.00014081,2]
[352953787,1739459447817,-1274.76,0.00014081,2]
[352953788,1739459447827,-2152.62,0.00014081,2]
[352953789,1739459447836,-1887.32,0.00014081,2]
[352953790,1739459447845,-1146.34,0.00014081,2]
[352953791,1739459447855,-1189.07,0.00014081,2]
[352953793,1739459447865,-500.0,0.00014081,2]
[352953794,1739459447875,-749.32,0.00014081,2]
[352953795,1739459447885,-1304.62,0.00014081,2]
[352953797,1739459447894,-500.0,0.00014081,2]
[352953799,1739459447903,-4264.97,0.00014081,2]
[352953800,1739459447912,-1575.36,0.00014081,2]
[352953802,1739459447922,-3016.37,0.00014081,2]
[352953804,1739459447931,-1154.07,0.00014081,2]
[352953806,1739459447940,-1056.87,0.00014081,2]
[352953808,1739459447949,-4156.64,0.00014081,2]
[352953810,1739459447959,-1715.18,0.00014081,2]
[352953812,1739459447968,-1316.21,0.00014081,2]
[352953814,1739459447979,-3062.28,0.00014081,2]
[352953816,1739459447988,-1274.83,0.00014081,2]
[352953818,1739459447997,-5766.98,0.00014081,2]
[352953820,1739459448006,-1803.09,0.00014081,2]
[352953822,1739459448016,-1540.2,0.00014081,2]
[352953824,1739459448027,-2137.82,0.00014081,2]
[352953826,1739459448037,-2596.86,0.00014081,2]
[352953828,1739459448048,-155.85,0.00014081,2]
[352953830,1739459448058,-3119.3,0.00014081,2]
[352953832,1739459448070,-698.4,0.00014081,2]
[352953834,1739459448080,-2043.63,0.00014081,2]
[352953836,1739459448090,-1480.87,0.00014081,2]
[352953838,1739459448100,-2362.93,0.00014081,2]
[352953840,1739459448111,-6548.52,0.00014081,2]
[352953842,1739459448123,-500.0,0.00014081,2]
[352953844,1739459448133,-1179.71,0.00014081,2]
[352953846,1739459448143,-2130.01,0.00014081,2]
[352953848,1739459448152,-4940.23,0.00014081,2]
[352953850,1739459448162,-11666.02,0.00014081,2]
[352953852,1739459448172,-2146.83,0.00014081,2]
[352953854,1739459448182,-2177.94,0.00014081,2]
[352953856,1739459448192,-1212.63,0.00014081,2]
[352953858,1739459448202,-1892.55,0.00014081,2]
[352953861,1739459448223,-1488.74,0.00014081,2]
[352953863,1739459448236,-1661.93,0.00014081,2]
[352953865,1739459448246,-1425.27,0.00014081,2]
[352953867,1739459448259,-967.43,0.00014081,2]
[352953869,1739459448269,-500.0,0.00014081,2]
[352953871,1739459448279,-1020.86,0.00014081,2]
[352953873,1739459448290,-1539.28,0.00014081,2]
[352953876,1739459448300,-2588.94,0.00014081,2]
[352953878,1739459448310,-1334.66,0.00014081,2]
[352953880,1739459448321,-2713.84,0.00014081,2]
[352953882,1739459448332,-660.36,0.00014081,2]
[352953884,1739459448342,-150.95983378,0.00014086,2]
[352953886,1739459448352,-150.95983378,0.00014093,2]
[352953888,1739459448363,-1000.0,0.00014099,2]
[352953890,1739459448376,-1000.0,0.00014099,2]
[352953892,1739459448388,-1000.0,0.00014099,2]
[352953894,1739459448399,-791.0,0.000141,2]
[352953896,1739459448409,-8500.0,0.000141,2]
[352953898,1739459448419,-150.95983378,0.000141,2]
[352953900,1739459448429,-7527.60846726,0.000141,2]
[352953902,1739459448439,-862.75677376,0.000141,2]
[352953904,1739459448449,-4629.53578602,0.000141,2]
[352953906,1739459448459,-796.48490908,0.000141,2]
[352953908,1739459448470,-500.0,0.000141,2]
[352953910,1739459448480,-1064.08,0.00014101,2]
[352953912,1739459448490,-500.0,0.00014101,2]
[352953914,1739459448500,-500.0,0.00014101,2]
[352953916,1739459448511,-927.95,0.00014101,2]
[352953918,1739459448522,-500.0,0.00014101,2]
[352953920,1739459448532,-500.0,0.00014101,2]
[352953922,1739459448542,-1015.32,0.00014101,2]
[352953925,1739459448552,-500.0,0.00014101,2]
[352953926,1739459448562,-500.0,0.00014101,2]
[352953929,1739459448573,-500.0,0.00014101,2]
[352953930,1739459448582,-500.0,0.00014101,2]
[352953932,1739459448592,-820.75,0.00014101,2]
[352953935,1739459448602,-1132.42,0.00014101,2]
[352953937,1739459448613,-500.0,0.00014101,2]
[352953938,1739459448624,-500.0,0.00014101,2]
[352953940,1739459448634,-461.00419305,0.00014101,2]
[352953943,1739459448644,-505.96579421,0.00014101,2]
[352953944,1739459448653,-500.0,0.00014101,2]
[352953946,1739459448663,-630.05,0.00014101,2]
[352953948,1739459448673,-1139.9,0.00014101,2]
[352953950,1739459448682,-500.0,0.00014101,2]
[352953952,1739459448692,-901.3,0.00014101,2]
[352953954,1739459448702,-500.0,0.00014101,2]
[352953956,1739459448711,-507.83999728,0.00014101,2]
[352953958,1739459448721,-1331.1,0.00014101,2]
[352953960,1739459448731,-500.0,0.00014101,2]
[352953962,1739459448741,-500.0,0.00014101,2]
[352953964,1739459448751,-502.85360559,0.00014101,2]
[352953966,1739459448761,-503.59384647,0.00014101,2]
[352953968,1739459448771,-542.42,0.00014101,2]
[352953970,1739459448780,-693.28,0.00014101,2]
[352953972,1739459448791,-1261.97,0.00014101,2]
[352953974,1739459448802,-500.0,0.00014101,2]
[352953977,1739459448813,-500.0,0.00014114,2]